fUST/lending_fUST_20250302
["ID","MTS","AMOUNT","RATE_DAILY","PERIOD"]
[354958491,1740845491815,-640.32252769,0.00029589,2]
[354958492,1740845491825,-2428.02,0.00029589,2]
[354958493,1740845491835,-10399.1,0.00029589,2]
[354958494,1740845491846,-500.0,0.00029589,2]
[354958495,1740845491855,-500.0,0.00029589,2]
[354958496,1740845491867,-500.0,0.00029589,2]
[354958497,1740845491878,-2276.78,0.00029589,2]
[354958498,1740845491888,-775.3,0.00029589,2]
[354958499,1740845491897,-723.15,0.00029589,2]
[354958500,1740845491909,-3370.6,0.00029589,2]
[354958501,1740845491920,-1321.62,0.00029589,2]
[354958502,1740845491931,-1750.68,0.00029589,2]
[354958503,1740845491941,-762.75,0.00029589,2]
[354958504,1740845491951,-500.0,0.00029589,2]
[354958505,1740845491962,-989.74,0.00029589,2]
[354958506,1740845491972,-17096.48,0.00029589,2]
[354958507,1740845491982,-2503.96,0.00029589,2]
[354958508,1740845491992,-2157.47,0.00029589,2]
[354958509,1740845492002,-675.89,0.00029589,2]
[354958510,1740845492011,-504.06,0.00029589,2]
[354958511,1740845492021,-500.0,0.00029589,2]
[354958512,1740845492031,-2911.22,0.00029589,2]
[354958513,1740845492042,-500.0,0.00029589,2]
[354958514,1740845492052,-225456.27,0.00029589,2]
[354958515,1740845492062,-500.0,0.00029589,2]
[354958516,1740845492072,-631.21,0.00029589,2]
[354958517,1740845492082,-9650.55,0.00029589,2]
[354958518,1740845492092,-1303.18,0.00029589,5]
[354958519,1740845492103,-699.03,0.00029589,2]
[354958520,1740845492113,-510.24,0.00029589,2]
[354958521,1740845492123,-1183.5,0.00029589,2]
[354958522,1740845492133,-500.0,0.00029589,2]
[354958523,1740845492143,-4420.81,0.00029589,2]
[354958524,1740845492153,-921.23,0.00029589,2]
[354958525,1740845492163,-1327.23,0.00029589,2]
[354958526,1740845492173,-1581.37,0.00029589,2]
[354958527,1740845492183,-1506.63,0.00029589,2]
[354958528,1740845492193,-1069.69,0.00029589,2]
[354958529,1740845492203,-768.55,0.00029589,2]
[354958530,1740845492224,-5083.88,0.00029589,2]
[354958531,1740845492234,-557.86,0.00029589,2]
[354958532,1740845492244,-1462.35,0.00029589,2]
[354958533,1740845492254,-2348.6,0.00029589,2]
[354958534,1740845492263,-500.0,0.00029589,2]
[354958535,1740845492274,-2044.68,0.00029589,2]
[354958536,1740845492284,-533.35,0.00029589,2]
[354958537,1740845492293,-5976.45,0.00029589,2]
[354958538,1740845492304,-500.0,0.00029589,2]
[354958539,1740845492313,-2355.23,0.00029589,2]
[354958540,1740845492323,-780.39,0.00029589,2]
[354958541,1740845492332,-500.0,0.00029589,2]
[354958542,1740845492342,-12948.86,0.00029589,2]
[354958543,1740845492351,-1113.59,0.00029589,2]
[354958544,1740845492361,-1854.03,0.00029589,2]
[354958545,1740845492370,-500.0,0.00029589,2]
[354958546,1740845492380,-645.91,0.00029589,2]
[354958547,1740845492391,-500.0,0.00029589,2]
[354958548,1740845492401,-500.0,0.00029589,2]
[354958549,1740845492411,-854.47,0.00029589,2]
[354958550,1740845492420,-549.93,0.00029589,2]
[354958551,1740845492430,-5672.75,0.00029589,2]
[354958552,1740845492441,-45482.56,0.00029589,2]
[354958553,1740845492451,-1730.18,0.00029589,2]
[354958554,1740845492460,-500.0,0.00029589,2]
[354958555,1740845492470,-1333.51,0.00029589,2]
[354958556,1740845492480,-780.68,0.00029589,2]
[354958557,1740845492490,-3090.36,0.00029589,2]
[354958558,1740845492500,-2015.18,0.00029589,2]
[354958559,1740845492510,-500.0,0.00029589,2]
[354958560,1740845492519,-820.13,0.00029589,2]
[354958561,1740845492529,-959.44,0.00029589,2]
[354958562,1740845492540,-1053.09,0.00029589,2]
[354958563,1740845492550,-3033.51,0.00029589,2]
[354958564,1740845492560,-3413.39,0.00029589,2]
[354958565,1740845492569,-861.63,0.00029589,2]
[354958566,1740845492579,-1956.94,0.00029589,2]
[354958567,1740845492589,-1430.2,0.00029589,2]
[354958568,1740845492598,-8129.77,0.00029589,2]
[354958569,1740845492609,-500.0,0.00029589,2]
[354958570,1740845492619,-1043.22,0.00029589,2]
[354958571,1740845492629,-3893.91,0.00029589,2]
[354958572,1740845492639,-1959.28,0.00029589,2]
[354958573,1740845492649,-2415.63,0.00029589,2]
[354958574,1740845492659,-500.0,0.00029589,2]
[354958575,1740845492669,-13931.51,0.00029589,2]
[354958576,1740845492679,-500.0,0.00029589,2]
[354958577,1740845492689,-320.22280286,0.00029589,2]
[354958578,1740845492700,-500.0,0.00029589,2]
[354958579,1740845492711,-500.0,0.00029589,2]
[354958580,1740845492721,-500.0,0.00029589,2]
[354958581,1740845492732,-1759.12,0.00029589,2]
[354958582,1740845492742,-2492.29,0.00029589,2]
[354958583,1740845492752,-611.54,0.00029589,2]
[354958584,1740845492762,-500.0,0.00029589,2]
[354958585,1740845492772,-659.83,0.00029589,2]
[354958586,1740845492782,-500.0,0.00029589,2]
[354958587,1740845492792,-561.47,0.00029589,2]
[354958588,1740845492802,-800.0,0.00029684,2]
[354958589,1740845492813,-14206.89,0.00029688,2]
[354958590,1740845492823,-1767.99,0.00029688,2]
[354958591,1740845492833,-5026.14,0.00029689,2]
[354958592,1740845492843,-500.0,0.00029689,2]
[354958593,1740845492853,-728.43,0.00029689,2]
[354958594,1740845492863,-186.09914736,0.00029689,2]
[354958595,1740845494181,-277.28329649,0.00027397,2]
[354958596,1740845494989,-500.0,0.00053404,30]
[354958597,1740845495016,-500.0,0.00053404,30]
[354958598,1740845495042,-2000.0,0.00053404,30]
[354958599,1740845495069,-2000.0,0.00053404,30]
[354958600,1740845495095,-55291.77666923,0.00053404,32]
[354958601,1740845495122,-219.62064989,0.00053404,30]
[354958602,1740845495150,-106612.4158187,0.00053404,35]
[354958603,1740845495177,-54530.342668,0.00053404,35]
[354958604,1740845495203,-1898.76830186,0.00053404,30]
[354958605,1740845495230,-116771.40372582,0.00053404,30]
[354958606,1740845495258,-30000.0,0.00053404,30]
[354958607,1740845495285,-48595.82564717,0.00053404,30]
[354958608,1740845495313,-2000.0,0.00053404,30]
[354958609,1740845495340,-3000.0,0.00053404,120]
[354958610,1740845495366,-2503.61710961,0.00053404,120]
[354958611,1740845495392,-3324.10019029,0.00053404,120]
[354958612,1740845495417,-5924.76772448,0.00053404,30]
[354958613,1740845495443,-899.71437348,0.00053404,120]
[354958614,1740845495468,-3341.58870016,0.00053404,120]
[354958615,1740845495494,-1591.77287772,0.00053404,30]
[354958616,1740845495520,-1861.33087259,0.00053404,120]
[354958617,1740845495546,-676.15642488,0.00053404,120]
[354958618,1740845495571,-2198.64143231,0.00053404,60]
[354958619,1740845495596,-240.82074905,0.00053404,120]
[354958620,1740845495622,-1056.13735329,0.00053404,120]
[354958621,1740845495648,-49521.35073896,0.00053404,30]
[354958622,1740845495673,-930.66538213,0.00053404,120]
[354958623,1740845495699,-2000.0,0.00053404,120]
[354958624,1740845495725,-9.18259038,0.00053404,120]
[354958626,1740845529335,-500.0,0.00029998,120]
[354958627,1740845529360,-500.0,0.00029998,120]
[354958628,1740845529386,-500.0,0.00029998,120]
[354958629,1740845529412,-500.0,0.00029998,120]
[354958630,1740845529438,-500.0,0.00029998,120]
[354958631,1740845529464,-500.0,0.00029998,120]
[354958632,1740845529492,-500.0,0.00029998,120]
[354958633,1740845529518,-500.0,0.00029998,120]
[354958634,1740845529545,-500.0,0.00029998,120]
[354958635,1740845529572,-500.0,0.00029998,120]
[354958636,1740845529598,-500.0,0.00029998,120]
[354958637,1740845529624,-500.0,0.00029998,120]
[354958638,1740845529650,-500.0,0.00029998,120]
[354958639,1740845529676,-500.0,0.00029998,120]
[354958640,1740845529702,-500.0,0.00029998,120]
[354958641,1740845529728,-500.0,0.00029998,120]
[354958642,1740845529754,-500.0,0.00029998,120]
[354958643,1740845529782,-276.0,0.00029998,120]
[354958644,1740845529808,-500.0,0.00029998,120]
[354958645,1740845529835,-500.0,0.00029998,120]
[354958646,1740845529861,-500.0,0.00029998,120]
[354958647,1740845529891,-500.0,0.00029998,120]
[354958648,1740845529919,-500.0,0.00029998,120]
[354958649,1740845529947,-500.0,0.00029998,120]
[354958650,1740845529975,-500.0,0.00029998,120]
[354958651,1740845530002,-270.63,0.00029998,120]
[354958652,1740845530033,-300.0,0.00030136,120]
[354958653,1740845530059,-300.0,0.00030136,120]
[354958654,1740845530144,-476.84304661,0.00031,120]
[354958655,1740845530206,-2276.3566692,0.00032,120]
[354958656,1740845530255,-5000.0,0.00032537,120]
[354958657,1740845530282,-5000.0,0.00032537,120]
[354958658,1740845530317,-15287.48758101,0.0003265,120]
[354958659,1740845530345,-560.47,0.00032876,120]
[354958660,1740845530371,-560.47,0.00032876,120]
[354958661,1740845530395,-560.47,0.00032876,120]
[354958662,1740845530421,-560.47,0.00032876,120]
[354958663,1740845530446,-560.47,0.00032876,120]
[354958664,1740845530471,-560.47,0.00032876,120]
[354958665,1740845530496,-560.47,0.00032876,120]
[354958666,1740845530522,-560.47,0.00032876,120]
[354958667,1740845530547,-560.47,0.00032876,120]
[354958668,1740845530573,-560.47,0.00032876,120]
[354958669,1740845530605,-560.47,0.00032876,120]
[354958670,1740845530631,-560.47,0.00032876,120]
[354958671,1740845530657,-560.47,0.00032876,120]
[354958672,1740845530682,-560.47,0.00032876,120]
[354958673,1740845530709,-560.47,0.00032876,120]
[354958674,1740845530889,-560.47,0.00032876,120]
[354958675,1740845530955,-560.47,0.00032876,120]
[354958676,1740845530983,-560.47,0.00032876,120]
[354958677,1740845531011,-560.47,0.00032876,120]
[354958678,1740845531041,-560.47,0.00032876,120]
[354958679,1740845531068,-560.47,0.00032876,120]
[354958680,1740845531098,-584.58,0.00032876,120]
[354958681,1740845531125,-584.58,0.00032876,120]
[354958682,1740845531151,-584.58,0.00032876,120]
[354958683,1740845531177,-584.58,0.00032876,120]
[354958684,1740845531204,-584.58,0.00032876,120]
[354958685,1740845531234,-584.58,0.00032876,120]
[354958686,1740845531260,-584.58,0.00032876,120]
[354958687,1740845531286,-584.58,0.00032876,120]
[354958688,1740845531311,-584.58,0.00032876,120]
[354958689,1740845531337,-584.58,0.00032876,120]
[354958690,1740845531363,-584.58,0.00032876,120]
[354958691,1740845531389,-584.58,0.00032876,120]
[354958692,1740845531415,-584.58,0.00032876,120]
[354958693,1740845531440,-584.58,0.00032876,120]
[354958694,1740845531464,-584.58,0.00032876,120]
[354958695,1740845531490,-584.58,0.00032876,120]
[354958696,1740845531515,-584.58,0.00032876,120]
[354958697,1740845531541,-584.58,0.00032876,120]
[354958698,1740845531567,-584.58,0.00032876,120]
[354958699,1740845531593,-584.58,0.00032876,120]
[354958700,1740845531620,-584.58,0.00032876,120]
[354958701,1740845531651,-1000.0,0.00032876,120]
[354958702,1740845531687,-1000.0,0.00032904,120]
[354958703,1740845531714,-1000.0,0.00032931,120]
[354958704,1740845531740,-1000.0,0.00032958,120]
[354958705,1740845531767,-1000.0,0.00032986,120]
[354958706,1740845531793,-171.03046203,0.00033,120]
[354958707,1740845531819,-16798.20379629,0.00033,120]
[354958708,1740845531845,-1000.0,0.00033013,120]
[354958709,1740845531872,-1000.0,0.00033041,120]
[354958710,1740845531904,-1000.0,0.00033068,120]
[354958711,1740845531931,-1000.0,0.00033095,120]
[354958712,1740845531960,-1000.0,0.00033123,120]
[354958713,1740845531987,-560.47,0.0003315,120]
[354958714,1740845532016,-584.58,0.0003315,120]
[354958715,1740845532048,-1000.0,0.0003315,120]
[354958716,1740845532077,-1000.0,0.00033178,120]
[354958717,1740845532103,-1000.0,0.00033205,120]
[354958718,1740845532130,-1000.0,0.00033232,120]
[354958719,1740845532156,-1000.0,0.0003326,120]
[354958720,1740845532182,-1000.0,0.00033287,120]
[354958721,1740845532209,-1000.0,0.00033315,120]
[354958722,1740845532235,-1000.0,0.00033342,120]
[354958723,1740845532261,-1000.0,0.00033369,120]
[354958724,1740845532288,-1000.0,0.00033397,120]
[354958725,1740845532315,-560.47,0.00033424,120]
[354958726,1740845532342,-584.58,0.00033424,120]
[354958727,1740845532373,-1000.0,0.00033424,120]
[354958728,1740845532402,-1000.0,0.00033452,120]
[354958729,1740845532427,-618.03251492,0.00033479,120]
[354958730,1740845532454,-560.68017133,0.00033698,120]
[354958731,1740845532482,-584.74252697,0.00033698,120]
[354958732,1740845532517,-1000.0,0.00034,120]
[354958733,1740845532545,-236.55239,0.00035,120]
[354958734,1740845532571,-150.0,0.00035,69]
[354958735,1740845532597,-8281.69128242,0.00035,120]
[354958736,1740845532623,-24240.65387733,0.00035,120]
[354958737,1740845532651,-1000.0,0.00036,120]
[354958738,1740845532676,-150.0,0.00036,86]
[354958739,1740845532703,-45259.98058047,0.000362,98]
[354958740,1740845532734,-45259.98058043,0.000362,98]
[354958741,1740845532761,-45259.98058043,0.000362,98]
[354958742,1740845532790,-45259.98058043,0.000362,98]
[354958743,1740845532817,-45259.98058043,0.000362,98]
[354958744,1740845532844,-9037.38210782,0.00036233,53]
[354958745,1740845532872,-150.45,0.00037,103]
[354958746,1740845532902,-150.0,0.000375,112]
[354958747,1740845532929,-154.260425,0.00037615,53]
[354958748,1740845532960,-154.260425,0.00037925,60]
[354958749,1740845532989,-154.260425,0.000383,60]
[354958750,1740845533021,-150.3,0.000385,120]
[354958751,1740845533052,-5244.18809886,0.00039,120]
[354958752,1740845533081,-154.260425,0.00039688,55]
[354958753,1740845533109,-13323.17068873,0.000398,60]
[354958754,1740845533138,-309443.64902935,0.0004,120]
[354958755,1740845533165,-226.49098775,0.0004,120]
[354958756,1740845533191,-581.37714844,0.0004,120]
[354958757,1740845533217,-223.0,0.0004,120]
[354958758,1740845533244,-406.1473593,0.0004,120]
[354958759,1740845533272,-3998.21298428,0.0004,120]
[354958760,1740845533486,-500.0,0.00041095,120]
[354958761,1740845533512,-500.0,0.00041095,120]
[354958762,1740845533540,-502.96589134,0.00041095,120]
[354958763,1740845533566,-3351.0,0.00041096,120]
[354958764,1740845533592,-283.0,0.0004137,90]
[354958765,1740845533622,-150.0,0.00042,120]
[354958766,1740845533649,-2866.99,0.0004218,90]
[354958767,1740845533675,-78329.15611359,0.000422,120]
[354958768,1740845533701,-304683.03804754,0.00043,120]
[354958769,1740845533728,-6000.0,0.00043,120]
[354958770,1740845533754,-283.0,0.00043151,90]
[354958771,1740845533780,-1000.0,0.000432,90]
[354958772,1740845533806,-3566.789,0.0004368,90]
[354958773,1740845533833,-3000.0,0.00043835,120]
[354958774,1740845533859,-3000.0,0.00043835,120]
[354958775,1740845533887,-3000.0,0.00043835,120]
[354958776,1740845533912,-3030.36083836,0.00043835,120]
[354958777,1740845533942,-3038.90399124,0.000445,120]
[354958778,1740845533970,-159.13020595,0.00044999,120]
[354958779,1740845533997,-151.0,0.00045,120]
[354958780,1740845534025,-151.0,0.00045,120]
[354958781,1740845534052,-100000.0,0.00045,120]
[354958782,1740845534078,-48355.6925756,0.00045,120]
[354958783,1740845534105,-3998.21298428,0.00045,120]
[354958784,1740845534131,-3000.0,0.00045184,120]
[354958785,1740845534158,-283.0,0.00045308,90]
[354958786,1740845534192,-3000.0,0.00045458,120]
[354958787,1740845534243,-3000.0,0.00045732,120]
[354958788,1740845534294,-6016.53207192,0.00046,120]
[354958789,1740845534346,-701633.86095535,0.00046575,59]
[354958790,1740845539624,-1000.0,0.00038356,60]
[354958791,1740845539651,-1000.0,0.00038356,60]
[354958792,1740845539677,-1000.0,0.00038356,60]
[354958793,1740845539703,-1000.0,0.00038356,60]
[354958794,1740845539730,-1000.0,0.00038356,60]
[354958795,1740845539757,-858.45234816,0.00038356,60]
[354958796,1740845539789,-200.0,0.0003996,56]
[354958797,1740845539822,-200.0,0.0004257,63]
[354958798,1740845539856,-200.0,0.0004519,70]
[354958799,1740845539884,-3000.0,0.00046006,120]
[354958800,1740845539912,-3000.0,0.0004628,120]
[354958801,1740845539939,-3000.0,0.00046554,120]
[354958802,1740845539965,-1216822.13904465,0.00046575,59]
[354958803,1740845539990,-3000.0,0.00046828,120]
[354958804,1740845540015,-3000.0,0.00047102,120]
[354958805,1740845540040,-3578.66,0.0004718,110]
[354958806,1740845540066,-1750.3035,0.00047373,120]
[354958807,1740845540092,-3000.0,0.00047376,120]
[354958808,1740845540121,-200000.0,0.00047777,120]
[354958809,1740845540148,-200.0,0.000478,77]
[354958810,1740845540174,-32158.63517787,0.0004784,120]
[354958811,1740845540199,-1000.0,0.00048,120]
[354958812,1740845540230,-150.0,0.000483,120]
[354958813,1740845540256,-150.0,0.000483,120]
[354958814,1740845540287,-283.0,0.00048329,90]
[354958815,1740845540314,-10000.0,0.000485,90]
[354958816,1740845540340,-18500.0,0.000486,120]
[354958817,1740845540367,-1200.0,0.000487,120]
[354958818,1740845540393,-1200.0,0.000487,120]
[354958819,1740845540418,-1200.0,0.000487,120]
[354958820,1740845540443,-1200.0,0.000487,120]
[354958821,1740845540468,-388.86494908,0.000488,120]
[354958822,1740845540493,-9207.54,0.0004888,120]
[354958823,1740845540520,-65653.40292252,0.00049,120]
[354958824,1740845540545,-11402.0,0.00049,120]
[354958825,1740845540570,-211.08,0.000493,120]
[354958826,1740845540595,-150.3,0.000493,120]
[354958827,1740845540620,-20000.0,0.00049315,120]
[354958828,1740845540645,-20000.0,0.00049315,120]
[354958829,1740845540670,-4898.71,0.00049315,120]
[354958830,1740845540695,-500.0,0.00049315,120]
[354958831,1740845540720,-500.0,0.00049315,120]
[354958832,1740845540745,-500.0,0.00049315,120]
[354958833,1740845540770,-500.0,0.00049315,120]
[354958834,1740845540796,-590.56,0.00049315,120]
[354958835,1740845540821,-285.81442067,0.00049315,120]
[354958836,1740845540847,-500.0,0.00049315,120]
[354958837,1740845541048,-500.0,0.00049315,120]
[354958838,1740845541078,-500.0,0.00049315,120]
[354958839,1740845541105,-500.0,0.00049315,120]
[354958840,1740845541132,-500.0,0.00049315,120]
[354958841,1740845541159,-500.0,0.00049315,120]
[354958842,1740845541187,-500.0,0.00049315,120]
[354958843,1740845541213,-500.0,0.00049315,120]
[354958844,1740845541239,-500.0,0.00049315,120]
[354958845,1740845541267,-500.0,0.00049315,120]
[354958846,1740845541296,-500.0,0.00049315,120]
[354958847,1740845541322,-500.0,0.00049315,120]
[354958848,1740845541349,-500.0,0.00049315,120]
[354958849,1740845541377,-500.0,0.00049315,120]
[354958850,1740845541421,-500.0,0.00049315,120]
[354958851,1740845541452,-500.0,0.00049315,120]
[354958852,1740845541482,-500.0,0.00049315,120]
[354958853,1740845541511,-500.0,0.00049315,120]
[354958854,1740845541541,-500.0,0.00049315,120]
[354958855,1740845541569,-500.0,0.00049315,120]
[354958856,1740845541596,-500.0,0.00049315,120]
[354958857,1740845541624,-500.0,0.00049315,120]
[354958858,1740845541651,-500.0,0.00049315,120]
[354958859,1740845541678,-500.0,0.00049315,120]
[354958860,1740845541706,-500.0,0.00049315,120]
[354958861,1740845541733,-500.0,0.00049315,120]
[354958862,1740845541760,-500.0,0.00049315,120]
[354958863,1740845541788,-500.0,0.00049315,120]
[354958864,1740845541815,-500.0,0.00049315,120]
[354958865,1740845541842,-500.0,0.00049315,120]
[354958866,1740845541869,-500.0,0.00049315,120]
[354958867,1740845541900,-500.0,0.00049315,120]
[354958868,1740845541927,-500.0,0.00049315,120]
[354958869,1740845541954,-158.595015,0.00049315,120]
[354958870,1740845542174,3000.0,0.0004765,120]
[354958871,1740845542493,3000.0,0.00047924,120]
[354958872,1740845543977,3000.0,0.00048198,120]
[354958873,1740845545659,3000.0,0.00048472,120]
[354958874,1740845547762,3000.0,0.00048746,120]
[354958875,1740845549336,3000.0,0.0004902,120]
[354958876,1740845549912,1312.7275,0.00044275,120]
[354959477,1740845631140,546.27,0.00022,7]
[354959478,1740845768219,476.6,0.00024,7]
[354959482,1740845902270,10000.0,0.00025,7]
[354959483,1740845905777,428.94,0.00024,7]
[354959484,1740845925120,10000.0,0.00025,7]
[354959485,1740845961691,10000.0,0.00025,7]
[354959486,1740846007194,10000.0,0.00025,7]
[354959487,1740846041325,386.04,0.00024,7]
[354959570,1740846179481,347.44,0.000222,7]
[354959587,1740846315753,312.7,0.000222,7]
[354959588,1740846338144,-665.07164,0.00021904,2]
[354959589,1740846338176,-818.02566518,0.00022027,2]
[354959590,1740846338203,-465.4,0.00022117,3]
[354959591,1740846338230,-160.35,0.00022118,2]
[354959592,1740846338257,-300.0,0.00022125,2]
[354959593,1740846338282,-360.63819317,0.00022126,2]
[354959594,1740846338307,-500.0,0.00022126,2]
[354959595,1740846338333,-500.0,0.00022126,2]
[354959596,1740846338359,-412.95418209,0.00022126,2]
[354959597,1740846339104,-87.04581791,0.00022126,2]
[354959598,1740846339132,-442.76284463,0.00022126,2]
[354959599,1740846405390,6493.60123003,0.00025,7]
[354959600,1740846405414,3506.39876997,0.00025,7]
[354959602,1740846426093,-872.86,0.00022116,3]
[354959603,1740846426116,-300.0,0.00022124,2]
[354959604,1740846426138,-123.62268993,0.00022125,2]
[354959605,1740846427079,-406.34612934,0.0002135,2]
[354959606,1740846429084,-455.60937166,0.0002135,2]
[354959607,1740846429107,-139.02392873,0.00022125,2]
[354959608,1740846429130,-459.66631843,0.00022125,2]
[354959609,1740846431120,-40.33368157,0.00022125,2]
[354959610,1740846431144,-252.44673522,0.00022125,2]
[354959611,1740846431168,-500.0,0.00022125,2]
[354959612,1740846431194,-500.0,0.00022125,2]
[354959613,1740846431218,-135.17241035,0.00022125,2]
[354959614,1740846431578,10000.0,0.00025,7]
[354959615,1740846441094,-640.11411287,0.00022025,2]
[354959616,1740846441118,-364.82758965,0.00022125,2]
[354959617,1740846441141,-538.73409535,0.00022125,2]
[354959618,1740846441163,-500.0,0.00022125,2]
[354959619,1740846441185,-558.50839649,0.00022125,2]
[354959620,1740846441212,-4435.73226693,0.00022125,2]
[354959621,1740846441236,-500.0,0.00022125,2]
[354959622,1740846441259,-4435.73226693,0.00022125,2]
[354959623,1740846441283,-500.0,0.00022125,2]
[354959624,1740846441306,-1184.79707123,0.00022125,2]
[354959625,1740846451848,281.43,0.000222,7]
[354959626,1740846479963,7248.15250521,0.00016,2]
[354959629,1740846515719,277.29515386,0.0001,2]
[354959630,1740846525915,300.0,0.0001,2]
[354959632,1740846527553,4581.15234408,0.000135,2]
[354959633,1740846529534,1567.56964094,0.0001,7]
[354959634,1740846550216,-196.79811355,0.0002061,2]
[354959635,1740846550242,-712.2329628,0.00021667,2]
[354959636,1740846550264,-1071.07187118,0.00022025,2]
[354959637,1740846550286,-300.0,0.00022123,2]
[354959638,1740846550309,-183.85263306,0.00022124,2]
[354959639,1740846550330,-176.71271465,0.00022124,2]
[354959640,1740846550352,-500.0,0.00022124,2]
[354959641,1740846550382,-500.0,0.00022124,2]
[354959642,1740846550406,-577.11386675,0.00022124,2]
[354959643,1740846550428,-500.0,0.00022124,2]
[354959644,1740846550451,-440.95587754,0.00022124,2]
[354959645,1740846550475,-486.06401847,0.00022124,2]
[354959646,1740846552096,-3849.10563241,0.00022124,2]
[354959647,1740846552120,-500.0,0.00022124,2]
[354959648,1740846552144,-3602.80183055,0.00022124,2]
[354959649,1740846557107,-24900.0,0.00021125,2]
[354959650,1740846557131,-732.36782033,0.00022124,2]
[354959651,1740846557154,-500.0,0.00022124,2]
[354959652,1740846557178,-4335.16965088,0.00022124,2]
[354959653,1740846557200,-500.0,0.00022124,2]
[354959654,1740846557227,-4335.16965088,0.00022124,2]
[354959655,1740846557251,-4335.16965088,0.00022124,2]
[354959656,1740846557276,-380.54549937,0.00022124,2]
[354959657,1740846557302,-4335.16965088,0.00022124,2]
[354959658,1740846557327,-4335.16965088,0.00022124,2]
[354959659,1740846557349,-500.0,0.00022124,2]
[354959660,1740846557373,-4335.16965088,0.00022124,2]
[354959661,1740846557591,-500.0,0.00022124,2]
[354959662,1740846557616,-4335.16965088,0.00022124,2]
[354959663,1740846557641,-4335.16965088,0.00022124,2]
[354959664,1740846557664,-500.0,0.00022124,2]
[354959665,1740846557688,-4335.16965088,0.00022124,2]
[354959666,1740846557712,-4335.16965088,0.00022124,2]
[354959667,1740846557735,-4335.16965088,0.00022124,2]
[354959668,1740846557760,-500.0,0.00022124,2]
[354959669,1740846557784,-4335.16965088,0.00022124,2]
[354959670,1740846557808,-4335.16965088,0.00022124,2]
[354959671,1740846557833,-4335.16965088,0.00022124,2]
[354959672,1740846557858,-4335.16965088,0.00022124,2]
[354959673,1740846557882,-4335.16965088,0.00022124,2]
[354959674,1740846557908,-4335.16965088,0.00022124,2]
[354959675,1740846557932,-4335.16965088,0.00022124,2]
[354959676,1740846557957,-4335.16965088,0.00022124,2]
[354959677,1740846557981,-4335.16965088,0.00022124,2]
[354959678,1740846558006,-4335.16965088,0.00022124,2]
[354959679,1740846558031,-4335.16965088,0.00022124,2]
[354959680,1740846558056,-4335.16965088,0.00022124,2]
[354959681,1740846558081,-4335.16965088,0.00022124,2]
[354959682,1740846558106,-4335.16965088,0.00022124,2]
[354959683,1740846558131,-4335.16965088,0.00022124,2]
[354959684,1740846558156,-4335.16965088,0.00022124,2]
[354959685,1740846558182,-4335.16965088,0.00022124,2]
[354959686,1740846558207,-4335.16965088,0.00022124,2]
[354959687,1740846558235,-4335.16965088,0.00022124,2]
[354959688,1740846558261,-4335.16965088,0.00022124,2]
[354959689,1740846558286,-4335.16965088,0.00022124,2]
[354959690,1740846558311,-4335.16965088,0.00022124,2]
[354959691,1740846558336,-4335.16965088,0.00022124,2]
[354959692,1740846558363,-4335.16965088,0.00022124,2]
[354959693,1740846558388,-4335.16965088,0.00022124,2]
[354959694,1740846558413,-4335.16965088,0.00022124,2]
[354959695,1740846558438,-4335.16965088,0.00022124,2]
[354959696,1740846558463,-4335.16965088,0.00022124,2]